bitfinex-derivatives/quotes_SOLF0:USTF0_20251219
["timestamp","ask_amount","ask_price","bid_price","bid_amount"]
[1766172997522,0.05848233,126.54,126.52,0.05372734]
[1766172999826,3.44,126.59,126.52,0.05372734]
[1766173000028,3.44,126.62,126.53,7.24253945]
[1766173000226,3.44,126.62,126.54,7.24253945]
[1766173000427,3.44,126.62,126.52,7.1171]
[1766173000728,3.44,126.62,126.53,7.24435817]
[1766173001029,3.49188629,126.59,126.56,0.00040612]
[1766173002425,0.05188629,126.59,126.56,0.00040612]
[1766173004923,3.44,126.65,126.57,7.24986191]
[1766173005123,3.44,126.65,126.54,9.4458]
[1766173005336,3.44,126.65,126.55,7.25169198]
[1766173005631,3.44,126.65,126.56,7.25169198]
[1766173005832,0.05865946,126.62,126.59,0.05115638]
[1766173006733,10.5488,126.68,126.59,0.05115638]
[1766173006939,3.44,126.68,126.6,7.25409979]
[1766173007138,3.44,126.68,126.61,7.25409979]
[1766173007430,3.44,126.68,126.58,2.21]
[1766173007431,3.44,126.68,126.62,7.25409979]
[1766173007626,3.44,126.68,126.63,7.25409979]
[1766173007823,0.05348884,126.67,126.64,7.31001304]
[1766173008022,0.05348884,126.67,126.65,7.25409979]
[1766173008223,0.05348884,126.67,126.64,0.05591325]
[1766173008519,0.05348884,126.67,126.65,7.25481782]
[1766173008725,0.05348884,126.67,126.64,0.05591325]
[1766173008926,0.05348884,126.67,126.65,7.25484882]
[1766173009235,0.05348884,126.67,126.66,0.00379659]
[1766173010233,5.41073017,126.7,126.64,0.05591325]
[1766173011928,12.51813017,126.7,126.64,0.05591325]
[1766173014237,7.1086,126.68,126.64,0.05591325]
[1766173014735,3.44,126.69,126.64,0.05591325]
[1766173015837,3.44,126.68,126.58,46.7]
[1766173016137,3.44,126.67,126.56,3.33]
[1766173016825,0.05350746,126.63,126.6,0.05745979]
[1766173017232,3.49350746,126.63,126.54,53.7959]
[1766173017434,3.44,126.63,126.54,53.7959]
[1766173017737,3.44,126.67,126.55,3.33]
[1766173018041,3.44,126.65,126.56,7.1149]
[1766173018240,0.06005874,126.62,126.59,0.05649869]
[1766173020242,3.50005874,126.62,126.54,46.68]
[1766173020439,3.44,126.62,126.52,3.33]
[1766173020834,3.44,126.62,126.55,7.1154]
[1766173021140,3.44,126.65,126.56,3.33]
[1766173021344,0.05757223,126.62,126.59,0.05901829]
[1766173021533,0.05757223,126.62,126.6,7.12356068]
[1766173021734,0.05757223,126.62,126.59,0.05901829]
[1766173021937,0.05757223,126.62,126.6,0.10566773]
[1766173022236,0.05757223,126.62,126.59,0.05901829]
[1766173023539,0.05757223,126.62,126.53,10.4464]
[1766173023845,9.16028092,126.65,126.53,10.4464]
[1766173024636,0.05722444,126.6,126.58,0.00459801]
[1766173024832,7.1108,126.64,126.58,0.00459801]
[1766173025431,110.6108,126.64,126.58,0.00459801]
[1766173025646,0.054672,126.62,126.53,3.33]
[1766173025942,119.76728092,126.65,126.53,3.33]
[1766173026648,0.05746032,126.6,126.53,3.33]
[1766173027741,0.05746032,126.6,126.55,0.05093857]
[1766173028054,0.05746032,126.6,126.55,0.00093857]
[1766173028347,46.68,126.64,126.55,3.30093857]
[1766173028648,46.68,126.64,126.55,3.3]
[1766173029444,0.05867884,126.61,126.58,0.05101545]
[1766173031450,0.05867884,126.61,126.52,3.3]
[1766173031640,110.6231,126.63,126.52,3.3]
[1766173031841,7.1126,126.61,126.52,3.3]
[1766173032551,0.05749943,126.58,126.55,0.05201217]
[1766173033641,0.05749943,126.58,126.49,3.3]
[1766173033860,110.6717,126.57,126.46,3.3]
[1766173034152,110.6809,126.56,126.46,3.3]
[1766173034550,7.1164,126.54,126.46,3.3]
[1766173034753,0.0512722,126.51,126.49,0.00216771]
[1766173034937,110.6993,126.54,126.49,0.00216771]
[1766173035136,119.82648092,126.58,126.43,3.3]
[1766173035355,119.80368092,126.61,126.49,3.3]
[1766173035556,110.6463,126.6,126.49,3.3]
[1766173035761,7.1143,126.58,126.49,3.3]
[1766173036050,0.05955219,126.55,126.49,3.3]
[1766173037152,0.05955219,126.55,126.51,0.0526511]
[1766173037554,0.05955219,126.55,126.46,3.3]
[1766173037758,157.3627,126.56,126.46,3.3]
[1766173037955,7.1155,126.56,126.46,3.3]
[1766173038350,53.7942,126.58,126.47,110.7559]
[1766173038547,0.05259826,126.54,126.51,0.05210443]
[1766173038857,0.05533857,126.54,126.51,0.05885472]
[1766173039061,119.80318092,126.61,126.51,3.49885472]
[1766173039062,46.68,126.61,126.51,3.49885472]
[1766173039358,157.323,126.61,126.51,3.44]
[1766173039562,7.1138,126.59,126.51,3.44]
[1766173039945,0.05574992,126.56,126.54,0.05949435]
[1766173041858,7.1125,126.61,126.54,0.05949435]
[1766173042060,53.8125,126.61,126.54,0.05949435]
[1766173042653,53.8125,126.61,126.48,3.44]
[1766173042654,157.3479,126.6,126.48,3.44]
[1766173043666,0.05366234,126.55,126.53,0.0006564]
[1766173043962,7.1153,126.56,126.53,0.0006564]
[1766173044763,7.1693883,126.56,126.53,0.0006564]
[1766173045261,0.0540883,126.56,126.48,3.44]
[1766173045558,119.82528092,126.58,126.48,3.44]
[1766173045762,46.7,126.57,126.48,3.44]
[1766173046157,0.05362698,126.54,126.51,0.05758384]
[1766173047460,0.00362698,126.54,126.51,3.49758384]
[1766173049462,0.00362698,126.54,126.51,0.05758384]
[1766173051160,0.00362698,126.54,126.48,3.44]
[1766173051963,0.00362698,126.54,126.46,46.68]
[1766173052264,7.1152,126.56,126.49,0.05414908]
[1766173052265,0.05075984,126.51,126.49,0.05414908]
[1766173052458,0.05613753,126.51,126.49,0.05414908]
[1766173053362,7.1158,126.55,126.49,0.05414908]
[1766173053667,46.7,126.55,126.49,0.05414908]
[1766173053864,46.7,126.55,126.49,0.00414908]
[1766173054070,7.117,126.53,126.44,3.44]
[1766173054267,119.88744831,126.53,126.44,3.44]
[1766173054462,16.29494831,126.53,126.44,3.44]
[1766173054770,9.17794831,126.53,126.44,3.44]
[1766173054972,0.05174515,126.5,126.47,0.06004827]
[1766173060572,119.87004831,126.55,126.47,3.55004827]
[1766173060573,9.17794831,126.55,126.47,3.55004827]
[1766173060763,9.17794831,126.55,126.47,3.49]
[1766173060764,55.89794831,126.55,126.47,3.49]
[1766173061567,0.00473957,126.52,126.5,0.05656386]
[1766173064973,110.6838,126.56,126.5,3.54656386]
[1766173065574,7.1161,126.55,126.5,3.54656386]
[1766173065968,0.05276841,126.54,126.5,3.54656386]
[1766173066169,7.16946841,126.54,126.5,3.54656386]
[1766173066570,0.05276841,126.54,126.5,3.54656386]
[1766173067078,0.00276841,126.54,126.5,3.54656386]
[1766173068284,0.00276841,126.54,126.5,0.05656386]
[1766173070686,3.17276841,126.54,126.5,0.05656386]
[1766173071184,3.17276841,126.54,126.42,110.8004]
[1766173071185,10.2875,126.52,126.43,3.49]
[1766173071480,46.7,126.53,126.43,3.49]
[1766173072283,3.17,126.52,126.47,0.06012949]
[1766173073175,0.05525622,126.51,126.47,0.06012949]
[1766173074086,3.22525622,126.51,126.42,3.49]
[1766173074381,3.17,126.5,126.42,3.49]
[1766173075386,0.05225587,126.47,126.45,0.0513918]
[1766173079380,0.05225587,126.47,126.45,0.0013918]
[1766173079592,3.17,126.46,126.36,3.49]
[1766173080095,7.1215,126.45,126.36,3.49]
[1766173080491,0.05301551,126.42,126.39,0.06048063]
[1766173082193,3.22301551,126.42,126.33,3.49]
[1766173082394,7.1243,126.4,126.33,3.49]
[1766173083299,0.05697176,126.38,126.35,0.05702877]
[1766173083491,10.2933,126.42,126.35,3.54702877]
[1766173083681,7.1233,126.42,126.35,3.54702877]
[1766173084491,0.05436115,126.4,126.35,3.54702877]
[1766173084692,0.00436115,126.4,126.35,3.54702877]
[1766173088700,40.99,126.47,126.36,3.19]
[1766173089002,50.19,126.47,126.36,3.19]
[1766173089395,50.19,126.47,126.38,3.19]
[1766173089594,3.45,126.5,126.39,3.19]
[1766173089898,3.45,126.5,126.42,3.19]
[1766173090693,0.05180812,126.47,126.45,0.05538604]
[1766173092096,0.05180812,126.47,126.42,3.19]
[1766173093001,0.05180812,126.47,126.43,0.06089229]
[1766173099102,0.00180812,126.47,126.43,3.35089229]
[1766173099996,3.45,126.51,126.43,3.35089229]
[1766173100196,125.62990038,126.56,126.44,3.29]
[1766173100197,3.41,126.54,126.44,3.29]
[1766173100497,3.41,126.54,126.45,3.29]
[1766173101101,7.1153,126.56,126.48,3.34212451]
[1766173101302,7.1153,126.56,126.48,3.29]
[1766173101506,10.5253,126.56,126.48,3.29]
[1766173102211,10.5253,126.56,126.42,110.8004]
[1766173102212,0.05047122,126.53,126.45,3.29]
[1766173102413,3.41,126.57,126.47,3.29]
[1766173103112,10.5248,126.57,126.47,3.29]
[1766173103314,0.06083918,126.53,126.51,0.05617313]
[1766173104012,0.06083918,126.53,126.47,3.29]
[1766173104614,3.47083918,126.53,126.44,3.29]
[1766173104810,3.41,126.53,126.44,3.29]
[1766173105013,0.05318032,126.5,126.47,0.0498996]
[1766173106316,0.00318032,126.5,126.47,0.0498996]
[1766173107008,0.00318032,126.5,126.43,3.29]
[1766173107214,3.41,126.51,126.43,3.29]
[1766173107707,114.1119,126.54,126.44,3.29]
[1766173107908,3.41,126.53,126.44,3.29]
[1766173108111,0.05607652,126.5,126.47,0.05058488]
[1766173108615,50.13,126.56,126.47,3.34058488]
[1766173108915,50.13,126.56,126.47,3.29]
[1766173109105,3.41,126.55,126.47,3.29]
[1766173109304,7.117,126.53,126.47,3.29]
[1766173109710,0.05598622,126.51,126.49,0.0567894]
[1766173111602,0.05598622,126.51,126.47,3.29]
[1766173111603,0.05598622,126.51,126.44,3.29]
[1766173111908,7.1193,126.49,126.41,3.29]
[1766173112104,3.41,126.5,126.41,3.29]
[1766173112413,3.41,126.5,126.41,10.4133]
[1766173112612,0.05189734,126.47,126.44,0.05868452]
[1766173112815,0.00189734,126.47,126.44,0.05868452]
[1766173115109,0.00189734,126.47,126.44,3.50868452]
[1766173115616,0.00189734,126.47,126.46,3.45]
[1766173116004,0.00189734,126.47,126.46,5.03]
[1766173116912,3.47,126.56,126.48,10.5693]
[1766173117116,3.47,126.56,126.48,3.45]
[1766173117117,3.47,126.55,126.48,3.45]
[1766173117718,0.05569375,126.53,126.5,0.05233373]
[1766173123522,0.05569375,126.53,126.45,3.45]
[1766173123822,3.47,126.56,126.45,3.45]
[1766173124612,0.05955204,126.52,126.49,0.05975482]
[1766173126116,0.05955204,126.52,126.45,3.45]
[1766173126322,3.52955204,126.52,126.45,3.45]
[1766173126618,0.05955204,126.52,126.45,3.45]
[1766173127105,0.05955204,126.52,126.47,0.05030309]
[1766173128616,7.17695204,126.52,126.47,0.05030309]
[1766173129206,0.05955204,126.52,126.47,0.05030309]
[1766173130215,0.05955204,126.52,126.47,3.50030309]
[1766173130521,3.47,126.56,126.47,3.50030309]
[1766173130814,3.47,126.56,126.47,3.45]
[1766173131415,3.47,126.56,126.5,0.05085416]
[1766173131416,0.05922081,126.53,126.5,0.05085416]
[1766173134926,10.5843,126.58,126.5,3.50085416]
[1766173135223,3.47,126.57,126.5,3.45]
[1766173135522,3.47,126.57,126.49,7.119]
[1766173135916,3.47,126.57,126.49,10.569]
[1766173136112,3.47,126.57,126.52,0.05503432]
[1766173136310,0.05353447,126.54,126.52,0.05503432]
[1766173142732,157.3477,126.6,126.52,3.50503432]
[1766173142733,114.1177,126.6,126.52,3.50503432]
[1766173143035,3.47,126.59,126.52,3.45]
[1766173143835,0.05885602,126.57,126.54,0.05689963]
[1766173145021,3.48,126.55,126.47,3.32]
[1766173145719,7.1169,126.53,126.47,3.32]
[1766173145921,3.48,126.54,126.49,0.05004684]
[1766173146120,0.05923297,126.51,126.49,4.684e-05]
[1766173146927,3.53923297,126.51,126.46,46.7]
[1766173147128,3.53923297,126.51,126.44,3.32]
[1766173148143,3.53923297,126.51,126.46,0.05624661]
[1766173149335,0.05923297,126.51,126.46,3.37624661]
[1766173150345,3.48,126.56,126.47,3.32]
[1766173150644,119.81737979,126.61,126.48,3.32]
[1766173150645,3.48,126.58,126.48,3.32]
[1766173151250,10.5942,126.58,126.49,10.4388]
[1766173151546,0.05842593,126.55,126.52,0.05403851]
[1766173155253,7.21443733,126.53,126.45,3.32]
[1766173155554,7.21443733,126.55,126.46,3.32]
[1766173155750,14.32933733,126.57,126.48,3.32]
[1766173156349,0.0601099,126.54,126.51,0.05525851]
[1766173160959,3.5401099,126.54,126.48,3.32]
[1766173161151,3.5401099,126.54,126.46,3.3]
[1766173161355,3.48,126.54,126.46,3.3]
[1766173162056,0.0559423,126.51,126.49,0.05596304]
[1766173167263,3.48,126.57,126.49,3.35596304]
[1766173167471,3.48,126.57,126.49,3.3]
[1766173167758,3.48,126.57,126.5,3.3]
[1766173167966,3.48,126.57,126.5,10.4183]
[1766173168361,0.05229795,126.55,126.52,0.05679897]
[1766173173563,3.53229795,126.55,126.48,7.1194]
[1766173173767,3.53229795,126.55,126.48,10.4194]
[1766173174767,3.53229795,126.55,126.5,0.05521122]
[1766173175267,0.05229795,126.55,126.5,3.37521122]
[1766173175777,0.05229795,126.55,126.51,3.32]
[1766173176064,134.32019521,126.62,126.51,3.32]
[1766173176065,3.17,126.61,126.51,3.32]
[1766173176853,0.05455685,126.57,126.55,0.0540767]
[1766173177059,3.22455685,126.57,126.48,3.32]
[1766173177264,3.17,126.57,126.49,3.32]
[1766173178176,3.17,126.59,126.52,3.37909475]
[1766173178472,3.17,126.59,126.49,3.32]
[1766173178971,7.1141,126.58,126.5,7.118]
[1766173179275,0.05458728,126.55,126.53,0.05883771]
[1766173180774,0.05458728,126.55,126.49,3.32]
[1766173181767,3.22458728,126.55,126.51,0.05081844]
[1766173184073,0.05458728,126.55,126.51,0.05081844]
[1766173186269,3.22458728,126.55,126.51,0.00081844]
[1766173188177,10.34038728,126.55,126.51,0.00081844]
[1766173188778,3.17,126.54,126.51,0.00081844]
[1766173191579,3.17,126.54,126.45,3.32]
[1766173192573,0.05507257,126.51,126.48,0.05551272]
[1766173195180,7.1191,126.49,126.43,3.32]
[1766173195477,6.90657199,126.49,126.4,3.32]
[1766173195680,3.17,126.48,126.4,3.32]
[1766173195871,10.2908,126.46,126.38,53.75657199]
[1766173196180,0.05967094,126.43,126.41,0.05061023]
[1766173196388,6.90657199,126.49,126.41,3.37061023]
[1766173196575,3.17,126.49,126.41,3.32]
[1766173197078,3.17,126.49,126.4,3.73657199]
[1766173197079,7.1183,126.51,126.43,3.32]
[1766173197475,0.05785098,126.48,126.46,0.05509308]
[1766173198183,0.05785098,126.48,126.41,3.32]
[1766173198184,3.22785098,126.48,126.41,3.32]
[1766173198370,10.29,126.48,126.41,3.32]
[1766173199276,0.0510707,126.46,126.43,0.06039029]
[1766173199879,0.0010707,126.46,126.43,3.38039029]
[1766173200682,7.1189,126.5,126.43,3.38039029]
[1766173200872,3.73889315,126.52,126.43,3.38039029]
[1766173201073,3.73889315,126.52,126.43,3.32]
[1766173201384,7.1181,126.51,126.43,3.32]
[1766173201586,113.8889,126.52,126.43,3.32]
[1766173201784,0.05209972,126.49,126.43,3.32]
[1766173202087,7.1199,126.48,126.43,3.32]
[1766173202675,0.05209972,126.49,126.43,3.32]
[1766173202874,0.05209972,126.49,126.45,0.05885494]
[1766173203075,7.17119972,126.49,126.45,0.05885494]
[1766173203972,0.05209972,126.49,126.45,0.05885494]
[1766173204172,0.05209972,126.49,126.45,3.34885494]
[1766173205981,0.05209972,126.49,126.45,0.05885494]
[1766173205982,3.52209972,126.49,126.45,0.05885494]
[1766173206187,3.52209972,126.49,126.42,3.29]
[1766173206686,3.47,126.48,126.39,3.29]
[1766173207384,0.0526636,126.45,126.42,0.05366919]
[1766173213096,0.0026636,126.45,126.42,3.34366919]
[1766173213394,3.47,126.51,126.42,3.34366919]
[1766173213596,3.47,126.51,126.42,3.29]
[1766173214300,0.05669706,126.48,126.45,0.05639973]
[1766173218495,0.05669706,126.48,126.41,3.29]
[1766173218697,3.52669706,126.48,126.41,3.29]
[1766173219716,10.64639706,126.48,126.41,3.29]
[1766173219912,10.64639706,126.48,126.43,0.05003101]
[1766173221616,0.05669706,126.48,126.43,3.40003101]
[1766173222220,7.1176,126.52,126.45,3.35]
[1766173222412,3.38,126.53,126.45,3.35]
[1766173223219,0.05582403,126.5,126.48,0.05519753]
[1766173227522,3.43582403,126.5,126.44,7.1217]
[1766173227820,3.43582403,126.5,126.42,3.35]
[1766173228020,3.38,126.5,126.42,3.35]
[1766173228624,0.05563552,126.47,126.45,0.05156895]
[1766173230215,0.05563552,126.47,126.45,0.00156895]
[1766173230421,3.43563552,126.47,126.4,10.474]
[1766173231325,3.43563552,126.47,126.4,3.35]
[1766173231926,3.38,126.46,126.38,46.7]
[1766173232122,0.05711088,126.43,126.35,3.35]
[1766173232315,3.38,126.43,126.35,3.35]
[1766173232928,0.05920438,126.4,126.35,3.35]
[1766173234334,0.05920438,126.4,126.33,49.97]
[1766173235532,3.41920438,126.4,126.33,3.25]
[1766173235732,3.36,126.39,126.29,3.25]
[1766173235930,0.06051307,126.35,126.29,3.25]
[1766173236431,3.36,126.42,126.31,3.25]
[1766173236729,10.4833,126.42,126.31,3.25]
[1766173237335,0.05507141,126.38,126.35,0.05172119]
[1766173237626,0.05507141,126.38,126.31,3.25]
[1766173238131,10.54057141,126.38,126.31,3.25]
[1766173238519,3.36,126.44,126.31,3.25]
[1766173238720,3.36,126.42,126.32,3.25]
[1766173238932,3.36,126.41,126.32,3.25]
[1766173239233,10.4844,126.4,126.32,3.25]
[1766173239429,3.36,126.38,126.3,3.25]
[1766173239634,0.05505545,126.35,126.33,0.05114104]
[1766173240734,157.5633,126.4,126.33,0.05114104]
[1766173240935,50.1,126.4,126.33,0.05114104]
[1766173241131,3.36,126.4,126.33,0.05114104]
[1766173241727,0.05863357,126.38,126.33,0.05114104]
[1766173241932,3.41863357,126.38,126.33,0.05114104]
[1766173243141,10.54403357,126.38,126.33,0.05114104]
[1766173243435,3.41863357,126.38,126.33,0.05114104]
[1766173245936,10.54413357,126.38,126.33,0.05114104]
[1766173247040,3.41863357,126.38,126.33,0.05114104]
[1766173247939,0.05863357,126.38,126.33,3.30114104]
[1766173250528,0.05863357,126.38,126.33,0.05114104]
[1766173254036,0.05863357,126.38,126.33,9.15156868]
[1766173255136,0.05863357,126.38,126.33,3.30114104]
[1766173255342,0.05863357,126.38,126.33,0.05114104]
[1766173256634,0.05863357,126.38,126.33,3.30114104]
[1766173260243,3.41863357,126.38,126.28,3.25]
[1766173260447,3.36,126.38,126.28,3.25]
[1766173261241,0.05786658,126.34,126.32,0.05617951]
[1766173262444,10.4857,126.38,126.32,0.05617951]
[1766173262749,3.36,126.38,126.32,0.05617951]
[1766173263451,0.05173301,126.36,126.32,0.05617951]
[1766173263749,7.17823301,126.36,126.32,0.05617951]
[1766173265448,10.92563794,126.36,126.32,0.05617951]
[1766173266255,10.92563794,126.36,126.28,7.1308]
[1766173266256,10.437,126.35,126.28,3.39]
[1766173266442,3.74740493,126.34,126.28,3.39]
[1766173267137,14.18500493,126.34,126.28,3.39]
[1766173267346,3.80533697,126.32,126.3,0.00091704]
[1766173267546,3.80533697,126.32,126.26,3.39]
[1766173268041,7.11533697,126.32,126.24,50.15]
[1766173268243,3.31,126.31,126.24,50.15]
[1766173268446,0.0502344,126.29,126.24,50.15]
[1766173270148,0.0502344,126.29,126.21,3.39]
[1766173270353,0.00098151,126.26,126.21,3.39]
[1766173271251,3.7501932,126.31,126.24,3.39]
[1766173272053,3.7501932,126.31,126.25,3.39]
[1766173272254,0.05418215,126.29,126.27,0.05484782]
[1766173272654,0.00418215,126.29,126.27,0.05484782]
[1766173273456,3.7501932,126.33,126.27,3.44484782]
[1766173274452,0.05206397,126.31,126.27,3.44484782]
[1766173276960,0.00206397,126.31,126.27,3.44484782]
[1766173282862,0.00206397,126.31,126.27,0.05484782]
[1766173283656,0.00206397,126.31,126.27,3.31484782]
[1766173284653,0.00206397,126.31,126.27,10.44614782]
[1766173284859,0.00206397,126.31,126.28,3.26]
[1766173285865,3.35,126.35,126.28,3.26]
[1766173286058,3.35,126.35,126.28,10.3908]
[1766173286856,0.05972477,126.33,126.3,0.05782391]
[1766173287056,15.57504383,126.38,126.3,3.31782391]
[1766173287257,15.57504383,126.38,126.3,3.26]
[1766173288065,0.05096056,126.35,126.33,0.05276102]
[1766173293966,0.05096056,126.35,126.3,3.26]
[1766173294170,3.36096056,126.35,126.28,3.44]
[1766173294364,3.31,126.35,126.28,3.44]
[1766173294966,0.05008802,126.33,126.3,0.05166805]
[1766173304273,3.7501932,126.37,126.3,3.49166805]
[1766173304464,24.2534461,126.59,126.33,3.44]
[1766173304465,3.31,126.44,126.33,3.44]
[1766173304663,3.7501932,126.44,126.34,114.3079]
[1766173304864,3.31,126.45,126.38,3.44]
[1766173305271,3.31,126.41,126.34,3.44]
[1766173305682,0.05112824,126.39,126.36,0.0498946]
[1766173313375,3.36112824,126.39,126.32,3.44]
[1766173313574,3.31,126.39,126.32,3.44]
[1766173314284,0.05619388,126.37,126.34,0.05900547]
[1766173322590,0.05619388,126.37,126.34,3.49900547]
[1766173325785,3.31,126.41,126.34,3.49900547]
[1766173326700,0.0521663,126.39,126.34,3.49900547]
[1766173329598,3.3421663,126.39,126.34,0.05900547]
[1766173331498,5.8500722,126.57,126.46,3.18]
[1766173331687,7.19746691,126.6,126.48,3.18]
[1766173332102,1.34739471,126.6,126.54,5.8500722]
[1766173332297,111.99329471,126.6,126.52,5.8500722]
[1766173332489,0.06005973,126.58,126.52,5.8500722]
[1766173333300,3.35005973,126.58,126.52,5.8500722]
[1766173333502,3.35005973,126.58,126.54,0.05387864]
[1766173333803,0.05327712,126.57,126.54,0.05387864]
[1766173334707,3.29,126.61,126.54,3.23387864]
[1766173335006,113.9321,126.61,126.54,0.05387864]
[1766173335304,3.29,126.6,126.54,0.00387864]
[1766173336208,3.34368738,126.58,126.54,0.00387864]
[1766173339098,46.74,126.59,126.54,0.00387864]
[1766173339305,7.1117,126.62,126.52,18.07313707]
[1766173339506,46.74,126.61,126.52,18.07313707]
[1766173339898,46.72,126.6,126.52,18.07313707]
[1766173340094,0.05623556,126.57,126.55,0.04995843]
[1766173340301,46.72,126.6,126.55,0.04995843]
[1766173340800,7.1117,126.62,126.55,0.04995843]
[1766173340999,46.72,126.61,126.55,0.04995843]
[1766173341205,0.06013572,126.59,126.57,0.05544651]
[1766173341505,46.72,126.61,126.57,0.05544651]
[1766173341704,3.29,126.6,126.52,18.07313707]
[1766173342190,3.29,126.6,126.49,18.07313707]
[1766173342396,3.29,126.59,126.49,18.07313707]
[1766173342797,0.06013388,126.55,126.53,0.06073294]
[1766173343001,3.29,126.59,126.53,0.06073294]
[1766173343703,46.72,126.58,126.53,0.06073294]
[1766173344002,3.29,126.59,126.53,0.06073294]
[1766173345105,0.05063263,126.57,126.53,0.06073294]
[1766173345307,3.29,126.59,126.53,0.06073294]
[1766173346305,0.05595409,126.57,126.53,0.06073294]
[1766173346508,3.93595409,126.57,126.53,0.06073294]
[1766173348706,3.93595409,126.57,126.53,0.00073294]
[1766173348910,3.88,126.55,126.45,3.92]
[1766173349605,3.88,126.54,126.45,3.92]
[1766173349805,0.0546251,126.51,126.48,0.05642179]
[1766173350813,0.0546251,126.51,126.43,14.89352799]
[1766173351008,0.0546251,126.51,126.42,3.92]
[1766173351009,3.88,126.51,126.42,3.92]
[1766173351905,0.05025865,126.48,126.45,0.05794872]
[1766173353404,50.58,126.51,126.45,0.05794872]
[1766173354408,0.05042631,126.49,126.45,0.05794872]
[1766173358510,0.05042631,126.49,126.45,4.12794872]
[1766173369316,0.05042631,126.49,126.45,0.05794872]
[1766173369718,4.1,126.48,126.4,50.77]
[1766173370720,11.22,126.48,126.4,4.07]
[1766173370927,0.05157163,126.45,126.43,0.05552533]
[1766173372526,0.05157163,126.45,126.37,4.07]
[1766173372733,4.1,126.45,126.37,4.07]
[1766173373035,4.1,126.43,126.37,4.07]
[1766173373521,4.1,126.43,126.39,0.05327758]
[1766173373522,0.06063202,126.41,126.39,0.05327758]
[1766173374031,0.00063202,126.41,126.39,4.12327758]
[1766173374416,46.72,126.48,126.4,4.07]
[1766173374617,4.1,126.49,126.4,4.07]
[1766173374618,50.82,126.49,126.4,4.07]
[1766173374829,4.1,126.49,126.4,4.07]
[1766173375432,0.05370036,126.46,126.43,0.05197603]
[1766173377225,4.1,126.52,126.43,4.12197603]
[1766173377424,4.1,126.52,126.4,110.8176]
[1766173377425,4.1,126.52,126.45,4.07]
[1766173378331,0.05282013,126.5,126.47,0.05660797]
[1766173380728,4.1,126.55,126.47,4.12660797]
[1766173380931,50.82,126.55,126.47,4.07]
[1766173381430,4.1,126.53,126.44,9.90841092]
[1766173381730,0.0599839,126.5,126.47,0.05213907]
[1766173384825,5.1999839,126.5,126.41,4.87]
[1766173385022,5.14,126.5,126.41,4.87]
[1766173385741,0.05222853,126.47,126.44,0.05554846]
[1766173387238,5.14,126.5,126.44,0.05554846]
[1766173388240,0.05857394,126.48,126.44,0.05554846]
[1766173389734,5.19857394,126.48,126.44,0.05554846]
[1766173390233,0.05857394,126.48,126.44,0.05554846]
[1766173390547,0.05857394,126.48,126.44,8.66444888]
[1766173393240,5.14,126.53,126.45,4.87]
[1766173394146,0.05844705,126.5,126.48,0.05730159]
[1766173396753,0.05844705,126.5,126.43,7.1222]
[1766173396937,0.05844705,126.5,126.43,4.87]
[1766173397138,5.19844705,126.5,126.43,4.87]
[1766173397744,5.19844705,126.5,126.45,0.05576245]
[1766173398149,0.05844705,126.5,126.45,4.92576245]
[1766173400851,5.05844705,126.5,126.45,0.05576245]
[1766173412862,0.05844705,126.5,126.45,5.47576245]
[1766173414165,0.05844705,126.5,126.45,9.2127451]
[1766173415562,12.4164,126.54,126.47,9.27698265]
[1766173416462,0.05432789,126.52,126.49,0.05529937]
[1766173416666,0.00432789,126.52,126.49,5.59529937]
[1766173416962,5.3,126.56,126.49,9.33228202]
[1766173417161,5.3,126.56,126.49,9.27698265]
[1766173417859,0.05638777,126.54,126.51,0.05454874]
[1766173418762,0.05638777,126.54,126.51,5.59454874]
[1766173421763,0.05638777,126.54,126.51,0.05454874]
[1766173435081,5.3,126.58,126.51,5.59454874]